[Event "ITT 1st Parada Jamundi 2022"]
[Site "Jamundi Valle"]
[Date "2022.12.08"]
[Round "5.8"]
[White "Valdes Martinez, Miguel A."]
[Black "Zuluaga Mancilla, Cesar"]
[Result "0-1"]
[ECO "D04"]
[WhiteElo "2104"]
[BlackElo "2230"]
[Annotator "TA"]
[PlyCount "84"]
[EventDate "2022.12.05"]
[EventType "swiss"]
[EventCountry "COL"]
[SourceTitle "playchess.com"]
[Source "ChessBase"]
[SourceQuality "1"]
[TimeControl "5400+30"]

{[%evp 9,84,8,15,10,19,4,24,-25,-24,-39,-35,-106,-108,-98,-39,-37,-26,-29,-28,-16,-20,-25,-29,-35,-22,-28,-30,-36,-28,-31,-32,-87,-98,-96,-91,-83,-56,-76,-2,-3,0,-46,-37,-33,-19,-79,-82,-75,-77,-238,-13,-12,-11,-315,-290,-523,-492,-587,-523,-2009,-1556,-5602,-5522,-29994,-1040,-2969,-2543,-2530,-2264,-2656,-2195,-29994,-29995,-29997,-29997,-29998,-29999]} 1. d4 {[%emt 1:31:00]} d5 {[%emt 0:08:13]} 2. Nf3 {[%emt 0:00:00]} Nf6 {[%emt 0:00:09]} 3. e3 {[%emt 0:00:00]} c6 {[%emt 0:00:53]} 4. h3 {[%emt 0:00:00]} Bf5 {[%emt 0:01:16]} 5. Bd3 {[%emt 0:00:00]} Bg6 {[%emt 0:00:09]} 6. O-O {[%emt 0:00:00] D04: Colle System.} Nbd7 {[%emt 0:00:09]} 7. Nbd2 {[%emt 0:00:00]} e6 {[%emt 0:00:59] [#]} 8. Qe2 $146 {[%emt 0:00:00]} (8. Bxg6 $142 hxg6 9. c4) ({Predecessor:} 8. Bxg6 hxg6 9. c4 Bd6 10. Re1 Ne4 11. Qe2 f5 12. Nf1 g5 13. N1h2 g4 14. hxg4 Bxh2+ 15. Nxh2 {0-1 (20) Volan,M (1499)-Plessis,A (1762) Cap d'Agde 2010}) 8... Ne4 $11 {[%emt 0:01:48]} 9. Bxe4 {[%emt 0:00:00]} dxe4 {[%emt 0:00:40]} 10. Ne5 {[%emt 0:00:00]} (10. Nh2 $15) 10... Nxe5 $17 {[%emt 0:03:46]} 11. dxe5 {[%emt 0:00:00]} Qc7 {[%emt 0:11:46]} (11... Qg5 $1 $17 12. Rd1 Qxe5) 12. Nc4 $15 {[%emt 0:00:00]} b5 {[%emt 0:01:42]} 13. Nd6+ {[%emt 0:00:00]} Bxd6 {[%emt 0:00:09]} 14. exd6 {[%emt 0:00:00]} Qxd6 {[%emt 0:00:05]} 15. a4 {[%emt 0:00:00]} b4 {[%emt 0:05:35]} 16. b3 {[%emt 0:00:00][%cal Oc2c3]} Qe5 $36 {[%emt 0:06:02][%mdl 2048] Black has good play.} 17. Rb1 {[%emt 0:00:00]} O-O {[%emt 0:02:16]} 18. Bb2 {[%emt 0:00:00]} Qg5 {[%emt 0:02:33] White should prevent ...Bh5.} 19. Qc4 {[%emt 0:00:00]} c5 {[%emt 0:00:20]} 20. Kh2 {[%emt 0:00:00]} (20. Rbc1 $15) 20... Rfd8 $17 {[%emt 0:02:18]} 21. c3 {[%emt 0:00:00]} a5 {[%emt 0:08:43] Black is more active.} (21... Rd2 {keeps more tension.} 22. Ba1 Bh5 23. cxb4 Be2) 22. cxb4 {[%emt 0:00:00]} cxb4 {[%emt 0:01:04]} 23. Bd4 {[%emt 0:00:00]} Rac8 {[%emt 0:10:56]} ({Black should play} 23... Qe7 $17 {Threatening ...Qd6+.} 24. Qc5 Qxc5 25. Bxc5 Ra6) 24. Qb5 $11 {[%emt 0:00:20]} Rd5 {[%emt 0:05:44]} (24... Qd5 {simplifies} 25. Rfd1 f6 26. Qxd5 Rxd5 27. Bb6 Rf5) 25. Qb7 {[%emt 0:00:01]} (25. Rfc1 $11 Ra8 26. Qb7) 25... Rcd8 {[%emt 0:00:46]} 26. Rbc1 {[%emt 0:01:55]} h5 {[%emt 0:00:15]} 27. Rc8 {[%emt 0:01:35]} (27. Bb6 $11) 27... Rxc8 $17 {[%emt 0:01:10]} 28. Qxc8+ {[%emt 0:00:02]} Kh7 $1 {[%emt 0:00:09]} 29. Rc1 $2 {[%emt 0:03:58] [#]} (29. Qc2 $17) 29... e5 $2 {[%emt 0:09:34]} (29... Rxd4 $1 $19 {[%mdl 512]} 30. exd4 Qf4+ 31. Kg1 e3 32. fxe3 Qxe3+ 33. Kh2 Be4) 30. Bb6 $11 {[%emt 0:04:48]} Rd2 {[%emt 0:00:22][%cal Bd5d2,Bd2d1,Bd1b1][%mdl 32]} (30... Qf5 {simplifies} 31. Qxf5 Bxf5 32. Rc7 Be6) 31. Rc2 $2 {[%emt 0:00:48][%mdl 8192]} (31. Rf1 $1 $11) 31... Bf5 $19 {[%emt 0:00:12]} 32. Qc4 $2 {[%emt 0:00:28]} (32. Qc6 Rd1 33. Rb2) 32... Rd1 $1 {[%emt 0:00:18][%cal Of5h3]} 33. Qe2 {[%emt 0:01:18]} (33. Bxa5 Bxh3 $1 {[%mdl 512]} 34. g3 Qg4 35. Qe2 Qf3 $1 36. Qxf3 (36. Kxh3 $2 Qh1#) 36... exf3) 33... Rb1 {[%emt 0:16:59][%cal Of5h3] Strongly threatening ...Bxh3!} ({Worse is} 33... Bxh3 34. f4 Qg4 35. Qxg4 Bxg4 36. Rc4 $17) 34. Rb2 {[#]} Bxh3 $1 {[%emt 0:00:00][%csl Gh3][%cal Rg5g2][%mdl 512]} 35. g3 {[%emt 0:01:06]} (35. f4 exf3) 35... Bf1 {[%emt 0:00:00] ( -> ...Qf5)} 36. Qc2 {[%emt 0:00:35] [#]} Bd3 {[%emt 0:00:00]} (36... Qg4 $142 $1 37. f4 (37. Kg1 Qf3) 37... Qh3+ 38. Kg1 Qxg3+ 39. Qg2 Bxg2+ 40. Rxb1 Bh3+ 41. Kh1 Qg2#) 37. Qxb1 {[%emt 0:00:01]} Bxb1 {[%emt 0:00:00]} 38. Rxb1 {[%emt 0:00:01] KQ-KRB} Qf6 {[%emt 0:00:00][%csl LRb6,LRf2]} 39. Bxa5 {[%emt 0:00:23]} Qxf2+ {[%emt 0:00:00]} 40. Kh3 {[%emt 0:01:04]} g5 {[%emt 0:00:00][%cal Bg7g5,Bg5g4][%mdl 32] Black mates.} 41. Bxb4 {[%emt 0:00:52]} g4+ {[%emt 0:00:00]} 42. Kh4 {[%emt 0:00:01]} Kg6 {[%emt 0:00:00] Weighted Error Value: White=1.21/Black=0.29 (precise)} 0-1

[Event "ITT 1st Parada Jamundi 2022"]
[Site "Jamundi Valle"]
[Date "2022.12.08"]
[Round "5.9"]
[White "Mateus, Alejandro"]
[Black "Malka, Samuel"]
[Result "0-1"]
[ECO "C45"]
[WhiteElo "2308"]
[BlackElo "2265"]
[Annotator "TA"]
[PlyCount "80"]
[EventDate "2022.12.05"]
[EventType "swiss"]
[EventCountry "COL"]
[SourceTitle "playchess.com"]
[Source "ChessBase"]
[SourceQuality "1"]
[TimeControl "5400+30"]

{[%evp 16,80,-15,-23,-18,-13,-31,-46,-29,-44,-18,-28,-38,-66,-79,-117,-86,-115,-76,-90,-72,-71,-54,-59,-40,-80,-26,-32,-28,-45,-35,-324,-313,-324,-59,-131,-50,-133,-128,-165,-135,-194,-170,-162,-162,-160,-147,-271,-242,-300,-277,-505,-496,-487,-482,-480,-480,-842,-753,-6570,-5737,-5591,-4727,-5501,-5473,-4818,-4818]} 1. e4 {[%emt 0:01:07]} e5 {[%emt 0:00:27]} 2. Nf3 {[%emt 0:02:22]} Nc6 {[%emt 0:00:21]} 3. d4 {[%emt 0:00:45]} exd4 {[%emt 0:00:05]} 4. Nxd4 {[%emt 0:00:06]} Nf6 {[%emt 0:00:08]} 5. Nxc6 {[%emt 0:00:15]} bxc6 {[%emt 0:00:08]} 6. Bd3 {[%emt 0:01:50]} d5 {[%emt 0:02:58]} 7. Nd2 {[%emt 0:12:22]} Bd6 {[%emt 0:05:31]} 8. O-O {[%emt 0:01:03]} O-O {[%emt 0:01:45]} 9. h3 {[%emt 0:01:43]} Re8 {[%emt 0:02:38][%cal Rf6e4] C45: Scotch Game.} 10. Re1 {[%emt 0:05:36]} Bb7 {[%emt 0:08:23]} 11. exd5 {[%emt 0:02:49]} cxd5 {[%emt 0:02:23] [#] Black is slightly better.} 12. Nf3 $146 {[%emt 0:03:07]} ({Predecessor:} 12. Rxe8+ Qxe8 13. Nf1 Qc6 14. Ng3 Re8 15. Nf5 Be5 16. Qd2 Qb6 {½-½ (16) Ticleanu,S (2090)-Simonet,D (2038) ICCF email 2018}) 12... Ne4 {[%emt 0:03:26]} (12... Rxe1+ {simplifies} 13. Qxe1 c5 14. c3 Qc7) 13. Be3 {[%emt 0:01:10]} c5 {[%emt 0:07:50]} 14. Nd2 {[%emt 0:08:47]} f5 {[%emt 0:06:57][%cal Bf7f5,Bf5e4][%mdl 32] Black is more active.} 15. Nxe4 {[%emt 0:17:08]} fxe4 {[%emt 0:00:43]} 16. Bb5 {[%emt 0:00:04]} Rf8 {[%emt 0:01:36] aiming for ...d4.} 17. c3 {[%emt 0:05:46] Against d4} Qf6 {[%emt 0:03:17]} 18. Qd2 {[%emt 0:02:08]} Qe5 {[%emt 0:04:22]} (18... h6 {looks sharper.} 19. Rad1 Rad8 20. b4 Be5) 19. g3 {[%emt 0:01:04]} Qf5 {[%emt 0:00:46]} 20. Bf1 {[%emt 0:01:32]} Rad8 {[%emt 0:03:36]} (20... a5 $17) 21. Rad1 $11 {[%emt 0:08:20]} a5 {[%emt 0:12:20]} 22. Qc2 {[%emt 0:04:33]} Bc6 $36 {[%emt 0:05:02][%mdl 2048] Black has some pressure.} 23. b4 $2 {[%emt 0:05:19][%mdl 8192]} ({White should try} 23. Qe2 $15) 23... axb4 $19 {[%emt 0:02:05]} (23... cxb4 24. cxb4 Rc8 25. bxa5 $15) 24. cxb4 {[%emt 0:00:02]} c4 {[%emt 0:01:13]} ({Black should play} 24... d4 $19 25. b5 Bd5) 25. Rb1 {[%emt 0:02:45]} ({Better is} 25. Bxc4 $15 Bb7 26. Be2 (26. Bb6 $2 Rc8 $19)) 25... Bd7 {[%emt 0:02:35]} (25... Qd7 $1 $17 26. Qb2 Rb8) 26. Red1 {[%emt 0:01:02] [#]} (26. a4 $1 $15) 26... Be6 $1 $17 {[%emt 0:01:13]} 27. b5 {[%emt 0:02:39]} Be5 {[%emt 0:03:36] White must now prevent ...d4.} 28. Bc5 {[%emt 0:00:40] [#] Against d4} (28. Bd4 $17) 28... d4 $1 {[%emt 0:06:33][%cal Bd5d4,Bd4d3][%mdl 32]} 29. Bxc4 {[%emt 0:01:45] [#]} Bxc4 {[%emt 0:02:37]} 30. Qxc4+ {[%emt 0:00:02]} (30. Bxf8 $2 {loses.} Bd5 $19) 30... Rf7 {[%emt 0:00:19][%cal Bf8f7,Bf7f5,Bf5b5,Bb5b1,Bb1b2][%mdl 32] The board is on fire.} 31. Rb2 {[%emt 0:02:25]} (31. Bxd4 $2 {perishes.} Bxd4 32. Qe2 Bxf2+ 33. Kh2 Rdf8 $19) (31. Rf1 $17) 31... d3 $19 {[%emt 0:06:26]} 32. Rbd2 {[%emt 0:01:27] [#]} Rc8 $1 {[%emt 0:01:07] Hoping for ...Bb8.} 33. Qd5 $2 {[%emt 0:03:14]} (33. Re1 {is a better defense.} Bd6 34. Qxe4 Qxe4 35. Rxe4 Bxc5 36. Kf1) 33... Bc3 {[%emt 0:04:34][%mdl 64] Discovered Attack, Trapped Piece. Black is clearly winning.} 34. Qxf5 {[%emt 0:01:07]} Rxf5 {[%emt 0:00:00]} 35. Be3 {[%emt 0:00:50]} Bxd2 {[%emt 0:00:00]} ({Stronger than} 35... Rxb5 36. Rc1 $17) 36. Rxd2 {[%emt 0:00:15]} (36. Bxd2 $142 Rxb5 37. a4) 36... Rxb5 {[%emt 0:00:00] Threatens to win with ...Rb1+.} 37. a4 {[%emt 0:00:22]} Rb1+ {[%emt 0:00:00]} 38. Kg2 {[%emt 0:00:06]} Rc2 {[%emt 0:00:00]} 39. a5 {[%emt 0:00:33]} Rxd2 {[%emt 0:00:00]} 40. Bxd2 {[%emt 0:00:01]} Rb2 {[%emt 0:00:00] Weighted Error Value: White=0.94/Black=0.22 (precise)} 0-1

[Event "ITT 1st Parada Jamundi 2022"]
[Site "Jamundi Valle"]
[Date "2022.12.08"]
[Round "5.10"]
[White "Aguero Jimenez, Luis Lazaro"]
[Black "Larino Nieto, David"]
[Result "1-0"]
[ECO "A07"]
[WhiteElo "2465"]
[BlackElo "2466"]
[Annotator "TA"]
[PlyCount "119"]
[EventDate "2022.12.05"]
[EventType "swiss"]
[EventCountry "COL"]
[SourceTitle "playchess.com"]
[Source "ChessBase"]
[SourceQuality "1"]
[TimeControl "5400+30"]

{[%evp 9,119,48,45,52,50,64,57,50,71,19,29,37,89,97,93,84,70,67,79,66,87,68,135,150,118,76,86,57,58,75,67,57,122,122,116,125,117,122,123,119,259,279,260,237,300,197,198,178,206,203,242,228,245,77,214,95,114,112,187,188,190,198,230,239,229,236,178,161,199,99,175,106,316,290,287,279,349,333,326,300,324,273,507,516,512,513,504,500,497,498,523,509,601,589,580,588,510,472,679,613,671,639,650,638,712,631,635,630,618,608,820,781]} 1. Nf3 {[%emt 0:00:02]} d5 {[%emt 0:04:33]} 2. g3 {[%emt 0:00:15]} Nf6 {[%emt 0:02:04]} 3. Bg2 {[%emt 0:00:04]} Bf5 {[%emt 0:00:02]} 4. O-O {[%emt 0:00:43]} Qc8 {[%emt 0:00:50]} 5. c4 {[%emt 0:02:46]} dxc4 {[%emt 0:00:41]} 6. Qa4+ {[%emt 0:00:32] A07: Réti Opening: New York and Capablanca Systems.} c6 {[%emt 0:00:42]} 7. Qxc4 {[%emt 0:00:27]} Nbd7 {[%emt 0:00:35]} 8. Nc3 {[%emt 0:03:59] White is slightly better.} Nb6 {[%emt 0:00:34] Prevents e4.} 9. Qh4 {[%emt 0:01:26]} (9. Qb3 $16) 9... h6 $11 {[%emt 0:00:55]} 10. d3 {[%emt 0:03:36]} Rg8 {[%emt 0:05:03] [#]} (10... e6 $14) 11. Qb4 $146 {[%emt 0:03:18]} ({Predecessor:} 11. a4 a5 12. Ne5 Nbd7 13. Nxd7 Qxd7 14. Qf4 Bh3 15. Ne4 Bxg2 16. Nxf6+ exf6 17. Kxg2 {1-0 (46) Kosmac,B (2195)-Podvrsnik,M (2204) Ljubljana 2012}) 11... Bh3 {[%emt 0:01:03]} 12. Bd2 {[%emt 0:02:08]} Bxg2 {[%emt 0:02:44]} 13. Kxg2 {[%emt 0:00:02]} g5 {[%emt 0:03:44]} 14. e4 {[%emt 0:03:38]} Nh5 {[%emt 0:06:08]} 15. Qb3 {[%emt 0:04:34]} Nf4+ {[%emt 0:01:45]} 16. Bxf4 {[%emt 0:00:21] Active counter play!} (16. gxf4 $2 {is a self mate.} Qg4+ 17. Kh1 Qxf3+ 18. Kg1 gxf4#) 16... gxf4 {[%emt 0:00:03]} 17. Ne2 {[%emt 0:00:31]} ({But not} 17. Ne5 Qe6 18. Qxe6 fxe6 $14) (17. d4 {keeps more tension.} h5 18. a4 Bh6 19. a5) 17... Qc7 {[%emt 0:01:46]} 18. Kh1 {[%emt 0:06:21]} (18. d4 {is more complex.} e6 19. a4 Nd7 20. a5) 18... fxg3 {[%emt 0:00:18]} 19. fxg3 {[%emt 0:00:08][%cal Of3e5]} e6 {[%emt 0:02:36]} 20. Nf4 {[%emt 0:06:16][%cal Of4e6] aiming for Nxe6!} Qd6 {[%emt 0:01:13]} ({Black should try} 20... Be7 $14) 21. a4 $1 {[%emt 0:05:55][%cal Ba2a4,Ba4a5,Ba5a6][%mdl 32] And now a5 would win.} O-O-O {[%emt 0:05:45]} 22. a5 {[%emt 0:02:02]} Nd7 {[%emt 0:02:09]} 23. a6 $1 $36 {[%emt 0:01:15][%csl Ga6][%cal Rb3b7][%mdl 2048] White is on the roll.} b6 {[%emt 0:00:32]} 24. d4 {[%emt 0:00:47]} Qb4 {[%emt 0:03:51]} (24... Kb8 $16 25. e5 Qb4) 25. Qc2 $18 {[%emt 0:01:26]} Qb5 {[%emt 0:02:15]} 26. Rfc1 {[%emt 0:06:05]} Nb8 {[%emt 0:03:14]} 27. Ra4 {[%emt 0:10:17]} Bd6 {[%emt 0:02:36]} 28. e5 {[%emt 0:00:47]} Be7 {[%emt 0:01:39]} 29. d5 {[%emt 0:35:19] Threatens to win with Nd4.} Rxd5 {[%emt 0:02:04]} 30. Nxd5 {[%emt 0:00:00]} Qxd5 {[%emt 0:00:08]} 31. Qe4 {[%emt 0:00:00]} (31. Rf4 $18) 31... Kc7 {[%emt 0:06:59]} (31... Qxe4 $16 {keeps fighting.} 32. Rxe4 c5) 32. Rd4 {[%emt 0:00:00]} (32. Qxd5 $18 {and White stays clearly on top.} exd5 33. Rf4) 32... Qxe4 $16 {[%emt 0:02:55]} 33. Rxe4 {[%emt 0:00:00][%cal Bd4e4,Be4f4,Bf4f7][%mdl 32]} b5 {[%emt 0:00:08]} (33... Kd7 $16 {was worth a try.}) 34. Nd4 $1 $18 {[%emt 0:00:00]} Kb6 {[%emt 0:07:57]} 35. Rf1 $1 {[%emt 0:00:00]} Rg7 {[%emt 0:00:10]} 36. Ref4 {[%emt 0:00:00]} Bc5 {[%emt 0:00:06] [#]} 37. Nb3 $1 {[%emt 0:00:00] Black must now prevent Nxc5.} (37. Rxf7 $2 {is the wrong capture.} Rxf7 38. Rxf7 Bxd4 39. Rb7+ Kxa6 40. Rxb8 Bxe5 $19) 37... Nxa6 {[%emt 0:00:03]} 38. Rxf7 {[%emt 0:00:00]} Rg5 {[%emt 0:00:06] [#]} 39. Re1 {[%emt 0:00:00]} (39. R7f6 $1 $18 {is more deadly.}) 39... h5 {[%emt 0:00:25]} (39... Bb4 $16 40. Re2 c5) 40. Re4 {[%emt 0:00:00]} (40. Rf6 $18) 40... b4 $2 {[%emt 0:00:48]} (40... Nb4 $16) 41. Nxc5 {[%emt 0:00:00]} Kxc5 {[%emt 0:00:02]} 42. Rxa7 {[%emt 0:00:00][%mdl 4096] Endgame KRR-KRN} Kd5 {[%emt 0:00:01]} 43. Rf4 {[%emt 0:00:00]} Nc5 {[%emt 0:00:02]} 44. Rxb4 {[%emt 0:00:00]} Rxe5 {[%emt 0:00:01]} 45. Ra5 {[%emt 0:00:00] Hoping for Rh4.} Re2 $2 {[%emt 0:00:44]} (45... Re1+ 46. Kg2 Re2+ 47. Kh3 e5) 46. b3 {[%emt 0:00:00][%cal Bb2b3,Bb3b4][%mdl 32] White is clearly winning.} Rc2 {[%emt 0:00:47] Inhibits Rc4.} 47. Rh4 {[%emt 0:00:23] Strongly threatening b4.} Kd6 {[%emt 0:00:01]} 48. b4 {[%emt 0:00:17]} Nb3 {[%emt 0:00:16]} 49. Raxh5 {[%emt 0:00:16]} Re2 {[%emt 0:00:50]} 50. Rc4 {[%emt 0:01:09]} e5 {[%emt 0:00:20]} 51. Rh6+ {[%emt 0:00:21]} Kd5 {[%emt 0:00:01]} 52. Rcxc6 {[%emt 0:02:34]} Nd4 {[%emt 0:00:32]} 53. Rc3 {[%emt 0:00:33]} Nf5 {[%emt 0:02:00]} (53... Rb2 $142 54. Rh7 Ke6) 54. Rh5 {[%emt 0:00:34]} Ne3 {[%emt 0:00:49][%cal Re2e1]} 55. Rc1 {[%emt 0:00:14] Inhibits Re1+.} Rb2 {[%emt 0:02:44]} 56. Re1 {[%emt 0:00:42]} Ng4 {[%emt 0:00:28]} 57. h3 {[%emt 0:00:55]} Nf2+ {[%emt 0:00:10]} 58. Kg1 {[%emt 0:00:06]} Nd3 {[%emt 0:00:41]} 59. Re3 {[%emt 0:00:57]} Rb3 {[%emt 0:00:04] [#]} 60. Rhxe5+ $3 {[%emt 0:06:29][%mdl 512] Weighted Error Value: White=0.23 (precise) /Black=0.37} 1-0

[Event "ITT 1st Parada Jamundi 2022"]
[Site "Jamundi Valle"]
[Date "2022.12.08"]
[Round "5.11"]
[White "Arango Arenas, Juan Camilo"]
[Black "Londono Lopez, Donaldo"]
[Result "1-0"]
[ECO "B23"]
[WhiteElo "2202"]
[BlackElo "2055"]
[Annotator "TA"]
[PlyCount "52"]
[EventDate "2022.12.05"]
[EventType "swiss"]
[EventCountry "COL"]
[SourceTitle "playchess.com"]
[Source "ChessBase"]
[SourceQuality "1"]
[TimeControl "5400+30"]

{[%evp 16,52,0,0,0,0,0,0,0,14,21,23,38,19,20,2,12,3,51,45,39,48,33,34,93,59,108,118,158,152,149,164,788,789,789,779,918,901,2609]} 1. e4 {[%emt 0:02:46]} c5 {[%emt 0:00:54]} 2. Nc3 {[%emt 0:01:00]} a6 {[%emt 0:00:22]} 3. a4 {[%emt 0:00:17]} Nc6 {[%emt 0:01:04]} 4. Bc4 {[%emt 0:00:11]} g6 {[%emt 0:00:33]} 5. f4 {[%emt 0:00:06]} Bg7 {[%emt 0:00:11]} 6. Nf3 {[%emt 0:00:05]} d6 {[%emt 0:01:15]} 7. O-O {[%emt 0:00:07]} Nf6 {[%emt 0:03:35]} 8. d3 {[%emt 0:00:06]} O-O {[%emt 0:01:49]} 9. Qe1 {[%emt 0:03:26][%cal Of4f5]} Nd4 {[%emt 0:01:02] Prevents f5. B23: Closed Sicilian: Lines without g3.} 10. Nxd4 {[%emt 0:00:20]} cxd4 {[%emt 0:00:18]} 11. Nd5 {[%emt 0:03:32]} Nxd5 {[%emt 0:08:52] The position is equal.} 12. Bxd5 {[%emt 0:00:16]} e6 {[%emt 0:00:39]} 13. Bb3 {[%emt 0:00:05]} Bd7 {[%emt 0:00:23] [#]} 14. Qg3 $146 {[%emt 0:02:06]} ({Predecessor:} 14. Bd2 f5 15. Bb4 {0-1 (15) Mejia,Y (1873)-Contreras Rodriguez,H (2213) Bogota 2013}) 14... Kh8 {[%emt 0:13:01]} 15. f5 {[%emt 0:09:32]} gxf5 {[%emt 0:07:49]} 16. exf5 {[%emt 0:01:47]} e5 {[%emt 0:00:54]} (16... Be5 $1 $11 17. Bf4 Bxf4 18. Qxf4 e5) 17. Qf3 {[%emt 0:14:09] aiming for f6.} Bc6 {[%emt 0:05:05] Inhibits f6.} 18. Qh5 {[%emt 0:00:12]} Qe7 {[%emt 0:06:28]} 19. Bd2 {[%emt 0:07:07]} Bf6 {[%emt 0:01:35]} (19... f6 $1 $14) 20. Rf2 {[%emt 0:10:41]} Bh4 {[%emt 0:22:24]} (20... b5 $1 $14 {is more appropriate.}) 21. Re2 $16 {[%emt 0:10:43]} d5 {[%emt 0:06:52]} 22. Rf1 $1 {[%emt 0:14:23] Black must now prevent Rf3. White is more active.} Rg8 {[%emt 0:07:46] [#]} 23. Rf3 $1 $36 {[%emt 0:00:41][%mdl 2048] White is really pushing.} Bg5 {[%emt 0:01:14] [#] Against f6} (23... Rg7 24. Bh6 Rag8) 24. f6 $1 $18 {[%emt 0:14:40] White is clearly winning.} (24. Rh3 f6 $15) 24... Bxf6 {[%emt 0:00:07]} 25. Ref2 {[%emt 0:00:00]} ({Stronger than} 25. Rh3 Rg7 $11) 25... Bh4 {[%emt 0:08:48]} 26. g3 {[%emt 0:05:12]} ({And not} 26. Rxf7 Bxf2+ 27. Rxf2 (27. Kxf2 $2 {too greedy.} Qxf7+ 28. Qxf7 Raf8 $19) 27... Rg6 $17) 26... Bf6 {[%emt 0:00:30] Weighted Error Value: White=0.05 (flawless) /Black=0.22 (precise)} 1-0

[Event "ITT 1st Parada Jamundi 2022"]
[Site "Jamundi Valle"]
[Date "2022.12.08"]
[Round "5.12"]
[White "Mogollon Tobar, Nicolle Julieth"]
[Black "Lopez Rayo, Isabella"]
[Result "1/2-1/2"]
[ECO "B76"]
[WhiteElo "1840"]
[BlackElo "1898"]
[Annotator "NA RC COMBH"]
[PlyCount "84"]
[EventDate "2022.12.05"]
[EventType "swiss"]
[EventCountry "COL"]
[SourceTitle "playchess.com"]
[Source "ChessBase"]
[SourceQuality "1"]
[TimeControl "5400+30"]

1. e4 {[%emt 0:02:27]} c5 {[%emt 0:00:06]} 2. Nf3 {[%emt 0:00:05]} d6 {[%emt 0:00:07]} 3. d4 {[%emt 0:00:05]} cxd4 {[%emt 0:00:06]} 4. Nxd4 {[%emt 0:00:06]} Nf6 {[%emt 0:00:44]} 5. Nc3 {[%emt 0:00:14]} g6 {[%emt 0:00:19]} 6. Be3 {[%emt 0:00:08]} Bg7 {[%emt 0:00:08]} 7. f3 {[%emt 0:00:06]} O-O {[%emt 0:00:06]} 8. Qd2 {[%emt 0:00:06]} Nc6 {[%emt 0:00:06]} 9. O-O-O {[%emt 0:00:06]} d5 {[%emt 0:00:06]} 10. Qe1 {[%emt 0:00:05]} e5 {[%emt 0:00:06]} 11. Nxc6 {[%emt 0:00:13]} bxc6 {[%emt 0:00:07]} 12. exd5 {[%emt 0:00:05]} Nxd5 {[%emt 0:00:09]} 13. Bc4 {[%emt 0:00:25]} Be6 {[%emt 0:00:07]} 14. Ne4 {[%emt 0:00:05]} Qc7 {[%emt 0:01:34]} 15. Bc5 {[%emt 0:04:30]} Rfd8 {[%emt 0:01:16]} 16. h4 {[%emt 0:03:34]} Nf4 {[%emt 0:07:56]} 17. Bxe6 {[%emt 0:01:14]} Nxe6 {[%emt 0:01:01]} 18. Qf2 {[%emt 0:05:10]} Qa5 {[%emt 0:08:03]} 19. a3 {[%emt 0:04:28]} Rd5 {[%emt 0:09:06]} 20. Be3 {[%emt 0:06:50]} Rad8 {[%emt 0:15:11]} 21. Nc3 {[%emt 0:11:10]} Rxd1+ {[%emt 0:05:44]} 22. Rxd1 {[%emt 0:00:43]} Nd4 {[%emt 0:02:53]} 23. h5 {[%emt 0:07:54]} Bf8 {[%emt 0:05:48]} 24. hxg6 {[%emt 0:06:07]} hxg6 {[%emt 0:01:25]} 25. Bxd4 {[%emt 0:05:35]} exd4 {[%emt 0:01:14]} 26. Nb1 {[%emt 0:12:00]} Bh6+ {[%emt 0:02:27]} 27. f4 {[%emt 0:00:51]} Qf5 {[%emt 0:07:06]} 28. Rxd4 {[%emt 0:04:09]} Rxd4 {[%emt 0:00:18]} 29. Qxd4 {[%emt 0:00:02]} Bxf4+ {[%emt 0:00:34]} 30. Nd2 {[%emt 0:00:23]} Qg5 {[%emt 0:03:56]} 31. c3 {[%emt 0:05:23]} c5 {[%emt 0:00:42]} 32. Qf2 {[%emt 0:02:04]} Be3 {[%emt 0:02:27]} 33. Qe2 {[%emt 0:00:48]} Qf4 {[%emt 0:01:16]} 34. Kc2 {[%emt 0:02:24]} Bxd2 {[%emt 0:01:02]} 35. Qxd2 {[%emt 0:00:02]} Qa4+ {[%emt 0:00:13]} 36. Kc1 {[%emt 0:00:15]} Qc4 {[%emt 0:01:37]} 37. Qg5 {[%emt 0:01:36]} Qf1+ {[%emt 0:00:44]} 38. Kc2 {[%emt 0:00:18]} Qe2+ {[%emt 0:00:16]} 39. Kc1 {[%emt 0:00:17]} Qf1+ {[%emt 0:00:12]} 40. Kc2 {[%emt 0:00:02]} Qe2+ {[%emt 0:00:05]} 41. Kc1 {[%emt 0:00:05]} Qf1+ {[%emt 0:00:03]} 42. Kc2 {[%emt 0:00:04]} Qe2+ {[%emt 0:00:04]} 1/2-1/2